[Event "Titled Tuesday Blitz May 23 Early 2023"]
[White "Sargissyan, Sargis"]
[Black "Vargas Rodriguez, Wilver"]
[WhiteFideId "13303210"]
[BlackFideId "3509672"]
[WhiteElo "2109"]
[BlackElo "2246"]
[Result "1-0"]
[Round "03"]
[TimeControl "180+2"]
[Date "2023.05.23"]
[WhiteClock "0:01:34"]
[BlackClock "0:00:15"]

1. e4 {[%clk 0:03:00]}  c5 {[%clk 0:02:59]} 2. Nf3 {[%clk 0:03:00]}  Nc6 {[%clk 0:02:59]} 3. d4 {[%clk 0:03:01]}  cxd4 {[%clk 0:03:00]} 4. Nxd4 {[%clk 0:03:01]}  Nf6 {[%clk 0:03:00]} 5. Nc3 {[%clk 0:03:01]}  e5 {[%clk 0:03:00]} 6. Ndb5 {[%clk 0:03:02]}  d6 {[%clk 0:03:00]} 7. Bg5 {[%clk 0:03:02]}  a6 {[%clk 0:03:00]} 8. Na3 {[%clk 0:03:03]}  b5 {[%clk 0:03:01]} 9. Nd5 {[%clk 0:03:04]}  Be7 {[%clk 0:03:00]} 10. Bxf6 {[%clk 0:03:05]}  Bxf6 {[%clk 0:02:58]} 11. c3 {[%clk 0:03:03]}  O-O {[%clk 0:02:55]} 12. Nc2 {[%clk 0:03:02]}  Bg5 {[%clk 0:02:51]} 13. h4 {[%clk 0:03:00]}  Bh6 {[%clk 0:02:49]} 14. g3 {[%clk 0:02:55]}  f5 {[%clk 0:02:41]} 15. exf5 {[%clk 0:02:53]}  Bxf5 {[%clk 0:02:40]} 16. Bg2 {[%clk 0:02:54]}  Rc8 {[%clk 0:02:34]} 17. O-O {[%clk 0:02:54]}  Kh8 {[%clk 0:02:14]} 18. a4 {[%clk 0:02:50]}  Bxc2 {[%clk 0:01:52]} 19. Qxc2 {[%clk 0:02:50]}  Nd4 {[%clk 0:01:51]} 20. Qd1 {[%clk 0:02:43]}  Nc6 {[%clk 0:01:17]} 21. axb5 {[%clk 0:02:42]}  axb5 {[%clk 0:01:18]} 22. Ra6 {[%clk 0:02:31]}  b4 {[%clk 0:01:18]} 23. Nxb4 {[%clk 0:02:04]}  Nxb4 {[%clk 0:01:18]} 24. cxb4 {[%clk 0:02:05]}  Qc7 {[%clk 0:00:41]} 25. Rxd6 {[%clk 0:01:51]}  Rfd8 {[%clk 0:00:28]} 26. Rd5 {[%clk 0:01:50]}  Rxd5 {[%clk 0:00:25]} 27. Qxd5 {[%clk 0:01:50]}  Rb8 {[%clk 0:00:24]} 28. b5 {[%clk 0:01:45]}  Bc1 {[%clk 0:00:17]} 29. Qc6 {[%clk 0:01:33]}  Qxc6 {[%clk 0:00:14]} 30. bxc6 {[%clk 0:01:34]}  Bxb2 {[%clk 0:00:14]} 31. c7 {[%clk 0:01:33]}  Rc8 {[%clk 0:00:14]} 32. Rb1 {[%clk 0:01:33]}  Rxc7 {[%clk 0:00:09]} 33. Rxb2 {[%clk 0:01:33]}  g6 {[%clk 0:00:08]} 34. Rb8+ {[%clk 0:01:32]}  Kg7 {[%clk 0:00:08]} 35. Rb7 {[%clk 0:01:33]}  Rxb7 {[%clk 0:00:07]} 36. Bxb7 {[%clk 0:01:33]}  g5 {[%clk 0:00:08]} 37. hxg5 {[%clk 0:01:32]}  Kg6 {[%clk 0:00:09]} 38. Be4+ {[%clk 0:01:32]}  Kxg5 {[%clk 0:00:09]} 39. Bxh7 {[%clk 0:01:33]}  e4 {[%clk 0:00:09]} 40. Bxe4 {[%clk 0:01:33]}  Kg4 {[%clk 0:00:10]} 41. Kg2 {[%clk 0:01:33]}  Kg5 {[%clk 0:00:10]} 42. f4+ {[%clk 0:01:33]}  Kg4 {[%clk 0:00:10]} 43. Bc6 {[%clk 0:01:33]}  Kf5 {[%clk 0:00:11]} 44. Kf3 {[%clk 0:01:33]}  Kg6 {[%clk 0:00:11]} 45. g4 {[%clk 0:01:34]}  Kf6 {[%clk 0:00:12]} 46. g5+ {[%clk 0:01:35]}  Kg6 {[%clk 0:00:13]} 47. Be4+ {[%clk 0:01:35]}  Kh5 {[%clk 0:00:13]} 48. Bf5 {[%clk 0:01:33]}  Kh4 {[%clk 0:00:14]} 49. g6 {[%clk 0:01:34]}  Kh5 {[%clk 0:00:14]} 50. g7 {[%clk 0:01:34]}  Kh6 {[%clk 0:00:15]} 51. g8=Q {[%clk 0:01:34]}  Kh5 {[%clk 0:00:15]} 52. Qg5# {[%clk 0:01:34]} 1-0


[Site "https://www.chess.com"]

[Event "Titled Tuesday Blitz May 23 Early 2023"]
[White "Dwilewicz, Katarzyna"]
[Black "Kaczur, Florian"]
[WhiteFideId "1148486"]
[BlackFideId "705098"]
[WhiteElo "2065"]
[BlackElo "2485"]
[Result "0-1"]
[Round "03"]
[TimeControl "180+2"]
[Date "2023.05.23"]
[WhiteClock "0:00:00"]
[BlackClock "0:00:38"]

1. Nf3 {[%clk 0:03:00]}  Nc6 {[%clk 0:02:57]} 2. d4 {[%clk 0:03:00]}  e6 {[%clk 0:02:55]} 3. c4 {[%clk 0:02:59]}  d6 {[%clk 0:02:54]} 4. Nc3 {[%clk 0:02:59]}  Nf6 {[%clk 0:02:53]} 5. e4 {[%clk 0:02:59]}  Be7 {[%clk 0:02:53]} 6. Bd3 {[%clk 0:02:53]}  e5 {[%clk 0:02:52]} 7. d5 {[%clk 0:02:52]}  Nb8 {[%clk 0:02:49]} 8. O-O {[%clk 0:02:52]}  a5 {[%clk 0:02:49]} 9. a3 {[%clk 0:02:50]}  Na6 {[%clk 0:02:49]} 10. Be3 {[%clk 0:02:49]}  Bg4 {[%clk 0:02:48]} 11. h3 {[%clk 0:02:49]}  Bh5 {[%clk 0:02:47]} 12. Rb1 {[%clk 0:02:47]}  Nc5 {[%clk 0:02:46]} 13. Bc2 {[%clk 0:02:45]}  O-O {[%clk 0:02:42]} 14. b4 {[%clk 0:02:44]}  axb4 {[%clk 0:02:43]} 15. axb4 {[%clk 0:02:44]}  Ncd7 {[%clk 0:02:38]} 16. g4 {[%clk 0:02:38]}  Bg6 {[%clk 0:02:30]} 17. Nd2 {[%clk 0:02:38]}  h5 {[%clk 0:02:26]} 18. f3 {[%clk 0:02:35]}  Nh7 {[%clk 0:02:23]} 19. Qe2 {[%clk 0:02:29]}  Bg5 {[%clk 0:02:22]} 20. Kg2 {[%clk 0:02:20]}  Re8 {[%clk 0:02:15]} 21. Bd3 {[%clk 0:02:09]}  Nhf8 {[%clk 0:02:06]} 22. Qf2 {[%clk 0:02:05]}  Bxe3 {[%clk 0:01:53]} 23. Qxe3 {[%clk 0:02:05]}  Bh7 {[%clk 0:01:54]} 24. gxh5 {[%clk 0:01:59]}  Nf6 {[%clk 0:01:47]} 25. h6 {[%clk 0:01:54]}  Nh5 {[%clk 0:01:45]} 26. Ne2 {[%clk 0:01:47]}  Ng6 {[%clk 0:01:44]} 27. Kh1 {[%clk 0:01:40]}  Ngf4 {[%clk 0:01:41]} 28. Rg1 {[%clk 0:01:33]}  Ra3 {[%clk 0:01:35]} 29. Nxf4 {[%clk 0:01:16]}  Nxf4 {[%clk 0:01:34]} 30. Rxg7+ {[%clk 0:01:15]}  Kh8 {[%clk 0:01:34]} 31. Qg1 {[%clk 0:01:06]}  Qf6 {[%clk 0:01:28]} 32. Bf1 {[%clk 0:00:59]}  Ra2 {[%clk 0:01:23]} 33. Nb3 {[%clk 0:00:38]}  Bg6 {[%clk 0:01:11]} 34. Ra1 {[%clk 0:00:32]}  Rxa1 {[%clk 0:01:05]} 35. Nxa1 {[%clk 0:00:31]}  Qh4 {[%clk 0:01:05]} 36. Nc2 {[%clk 0:00:15]}  Qxh6 {[%clk 0:00:57]} 37. Rxg6 {[%clk 0:00:15]}  fxg6 {[%clk 0:00:58]} 38. c5 {[%clk 0:00:10]}  Ra8 {[%clk 0:00:54]} 39. Ne3 {[%clk 0:00:07]}  Ra2 {[%clk 0:00:47]} 40. Ng4 {[%clk 0:00:06]}  Qh4 {[%clk 0:00:44]} 41. cxd6 {[%clk 0:00:02]}  Nxh3 {[%clk 0:00:42]} 42. dxc7 {[%clk 0:00:00]}  Nf2+ {[%clk 0:00:38]} 0-1


[Site "https://www.chess.com"]

[Event "Titled Tuesday Blitz May 23 Early 2023"]
[White "Djordjevic, Vuk"]
[Black "Rose, Felix"]
[WhiteFideId "902098"]
[BlackFideId "5105722"]
[WhiteElo "2452"]
[BlackElo "2039"]
[Result "1-0"]
[Round "03"]
[TimeControl "180+2"]
[Date "2023.05.23"]
[WhiteClock "0:01:19"]
[BlackClock "0:00:02"]

1. d4 {[%clk 0:03:00]}  Nf6 {[%clk 0:02:59]} 2. Bg5 {[%clk 0:03:01]}  d5 {[%clk 0:02:58]} 3. Bxf6 {[%clk 0:03:01]}  gxf6 {[%clk 0:02:58]} 4. e3 {[%clk 0:02:59]}  e5 {[%clk 0:02:58]} 5. c4 {[%clk 0:02:57]}  Be6 {[%clk 0:02:41]} 6. cxd5 {[%clk 0:02:48]}  Qxd5 {[%clk 0:02:39]} 7. Nc3 {[%clk 0:02:48]}  Bb4 {[%clk 0:02:39]} 8. Nf3 {[%clk 0:02:45]}  Nc6 {[%clk 0:02:35]} 9. a3 {[%clk 0:02:45]}  exd4 {[%clk 0:02:25]} 10. axb4 {[%clk 0:02:31]}  dxc3 {[%clk 0:02:23]} 11. Qxd5 {[%clk 0:02:31]}  Bxd5 {[%clk 0:02:23]} 12. bxc3 {[%clk 0:02:30]}  Bxf3 {[%clk 0:02:07]} 13. gxf3 {[%clk 0:02:30]}  O-O-O {[%clk 0:02:07]} 14. b5 {[%clk 0:02:29]}  Ne5 {[%clk 0:02:06]} 15. Rxa7 {[%clk 0:02:23]}  Nxf3+ {[%clk 0:02:02]} 16. Ke2 {[%clk 0:02:23]}  Kb8 {[%clk 0:01:46]} 17. Ra4 {[%clk 0:02:15]}  Nd2 {[%clk 0:01:35]} 18. Bg2 {[%clk 0:02:11]}  Nb3 {[%clk 0:01:32]} 19. Rb1 {[%clk 0:02:08]}  Rd2+ {[%clk 0:01:08]} 20. Ke1 {[%clk 0:02:07]}  Nc5 {[%clk 0:01:08]} 21. Rc4 {[%clk 0:02:03]}  Rb2 {[%clk 0:00:59]} 22. Rxb2 {[%clk 0:02:02]}  Nd3+ {[%clk 0:00:59]} 23. Ke2 {[%clk 0:02:02]}  Nxb2 {[%clk 0:01:00]} 24. Rb4 {[%clk 0:02:03]}  Rg8 {[%clk 0:00:53]} 25. Be4 {[%clk 0:02:01]}  Rg4 {[%clk 0:00:50]} 26. Kf3 {[%clk 0:02:01]}  f5 {[%clk 0:00:41]} 27. Bxf5 {[%clk 0:01:51]}  Rxb4 {[%clk 0:00:40]} 28. cxb4 {[%clk 0:01:52]}  h6 {[%clk 0:00:32]} 29. Bc2 {[%clk 0:01:45]}  Nc4 {[%clk 0:00:31]} 30. Ke4 {[%clk 0:01:45]}  Nd6+ {[%clk 0:00:26]} 31. Ke5 {[%clk 0:01:39]}  Kc8 {[%clk 0:00:20]} 32. b6 {[%clk 0:01:39]}  Nc4+ {[%clk 0:00:10]} 33. Kf6 {[%clk 0:01:38]}  cxb6 {[%clk 0:00:08]} 34. Kxf7 {[%clk 0:01:38]}  Ne5+ {[%clk 0:00:08]} 35. Kg7 {[%clk 0:01:35]}  h5 {[%clk 0:00:07]} 36. h4 {[%clk 0:01:24]}  Kd8 {[%clk 0:00:05]} 37. Bd1 {[%clk 0:01:24]}  Nd3 {[%clk 0:00:03]} 38. f4 {[%clk 0:01:25]}  Nxb4 {[%clk 0:00:02]} 39. Bxh5 {[%clk 0:01:25]}  Nd5 {[%clk 0:00:03]} 40. Bf3 {[%clk 0:01:25]}  Nxe3 {[%clk 0:00:02]} 41. h5 {[%clk 0:01:22]}  b5 {[%clk 0:00:02]} 42. h6 {[%clk 0:01:19]}  Nf5+ {[%clk 0:00:02]} 43. Kg6 {[%clk 0:01:17]}  Nxh6 {[%clk 0:00:02]} 44. Kxh6 {[%clk 0:01:18]}  b4 {[%clk 0:00:02]} 45. f5 {[%clk 0:01:18]}  Ke7 {[%clk 0:00:02]} 46. Kg7 {[%clk 0:01:18]}  Kd6 {[%clk 0:00:01]} 47. f6 {[%clk 0:01:18]}  b3 {[%clk 0:00:01]} 48. f7 {[%clk 0:01:18]}  Ke5 {[%clk 0:00:01]} 49. f8=Q {[%clk 0:01:18]}  b2 {[%clk 0:00:02]} 50. Qf6# {[%clk 0:01:19]} 1-0


[Site "https://www.chess.com"]

[Event "Titled Tuesday Blitz May 23 Early 2023"]
[White "Bashkansky, Ethan"]
[Black "Kim, Sergey"]
[WhiteFideId "2071533"]
[BlackFideId "13700570"]
[WhiteElo "2294"]
[BlackElo "2570"]
[Result "0-1"]
[Round "03"]
[TimeControl "180+2"]
[Date "2023.05.23"]
[WhiteClock "0:01:43"]
[BlackClock "0:02:35"]

1. d4 {[%clk 0:03:00]}  Nf6 {[%clk 0:02:59]} 2. c4 {[%clk 0:03:01]}  g6 {[%clk 0:02:59]} 3. Nc3 {[%clk 0:03:01]}  Bg7 {[%clk 0:03:00]} 4. e4 {[%clk 0:03:02]}  d6 {[%clk 0:03:00]} 5. f3 {[%clk 0:03:03]}  O-O {[%clk 0:03:01]} 6. Be3 {[%clk 0:03:03]}  Nc6 {[%clk 0:03:01]} 7. Qd2 {[%clk 0:03:02]}  a6 {[%clk 0:03:00]} 8. Nge2 {[%clk 0:03:02]}  Rb8 {[%clk 0:03:00]} 9. Nc1 {[%clk 0:03:02]}  e5 {[%clk 0:03:00]} 10. d5 {[%clk 0:03:03]}  Nd4 {[%clk 0:03:00]} 11. Nb3 {[%clk 0:03:03]}  c5 {[%clk 0:03:00]} 12. dxc6 {[%clk 0:03:03]}  bxc6 {[%clk 0:03:01]} 13. Nxd4 {[%clk 0:03:03]}  exd4 {[%clk 0:03:02]} 14. Bxd4 {[%clk 0:03:04]}  d5 {[%clk 0:03:02]} 15. cxd5 {[%clk 0:03:04]}  cxd5 {[%clk 0:03:03]} 16. e5 {[%clk 0:03:05]}  Re8 {[%clk 0:03:03]} 17. Be2 {[%clk 0:03:01]}  Nd7 {[%clk 0:03:02]} 18. f4 {[%clk 0:03:01]}  Bh6 {[%clk 0:03:03]} 19. O-O {[%clk 0:02:43]}  Nxe5 {[%clk 0:03:02]} 20. b3 {[%clk 0:02:05]}  Nc6 {[%clk 0:02:56]} 21. Rad1 {[%clk 0:01:56]}  Nxd4 {[%clk 0:02:50]} 22. Qxd4 {[%clk 0:01:56]}  Bg7 {[%clk 0:02:44]} 23. Qxd5 {[%clk 0:01:54]}  Qb6+ {[%clk 0:02:38]} 24. Kh1 {[%clk 0:01:43]}  Bxc3 {[%clk 0:02:35]} 0-1


[Site "https://www.chess.com"]

[Event "Titled Tuesday Blitz May 23 Early 2023"]
[White "De Souza, Cristiano Gomes"]
[Black "Guerra Tulcan, Lenin"]
[WhiteFideId "2151758"]
[BlackFideId "3601382"]
[WhiteElo "2068"]
[BlackElo "2368"]
[Result "0-1"]
[Round "03"]
[TimeControl "180+2"]
[Date "2023.05.23"]
[WhiteClock "0:00:53"]
[BlackClock "0:01:34"]

1. d4 {[%clk 0:02:04]}  Nf6 {[%clk 0:02:58]} 2. c4 {[%clk 0:02:04]}  c5 {[%clk 0:02:59]} 3. Nf3 {[%clk 0:02:05]}  cxd4 {[%clk 0:02:57]} 4. Nxd4 {[%clk 0:02:06]}  e5 {[%clk 0:02:57]} 5. Nb5 {[%clk 0:02:06]}  Nc6 {[%clk 0:02:58]} 6. Nd6+ {[%clk 0:02:04]}  Bxd6 {[%clk 0:02:57]} 7. Qxd6 {[%clk 0:02:05]}  Qe7 {[%clk 0:02:57]} 8. Qxe7+ {[%clk 0:02:04]}  Nxe7 {[%clk 0:02:56]} 9. Nc3 {[%clk 0:02:05]}  d5 {[%clk 0:02:56]} 10. cxd5 {[%clk 0:02:04]}  Nexd5 {[%clk 0:02:56]} 11. Nxd5 {[%clk 0:02:03]}  Nxd5 {[%clk 0:02:57]} 12. e4 {[%clk 0:02:02]}  Nb4 {[%clk 0:02:56]} 13. Bb5+ {[%clk 0:02:02]}  Bd7 {[%clk 0:02:54]} 14. Bxd7+ {[%clk 0:02:02]}  Kxd7 {[%clk 0:02:55]} 15. O-O {[%clk 0:02:02]}  Rhc8 {[%clk 0:02:54]} 16. a3 {[%clk 0:02:02]}  Nc2 {[%clk 0:02:52]} 17. Rb1 {[%clk 0:02:02]}  Ke6 {[%clk 0:02:52]} 18. f4 {[%clk 0:01:59]}  f6 {[%clk 0:02:50]} 19. fxe5 {[%clk 0:01:56]}  fxe5 {[%clk 0:02:42]} 20. Bd2 {[%clk 0:01:55]}  Nd4 {[%clk 0:02:39]} 21. Bc3 {[%clk 0:01:52]}  Ne2+ {[%clk 0:02:35]} 22. Kh1 {[%clk 0:01:52]}  b6 {[%clk 0:02:31]} 23. Rf3 {[%clk 0:01:45]}  Rc4 {[%clk 0:02:27]} 24. Re1 {[%clk 0:01:43]}  Nxc3 {[%clk 0:02:23]} 25. Rxc3 {[%clk 0:01:41]}  Rxc3 {[%clk 0:02:20]} 26. bxc3 {[%clk 0:01:42]}  Rc8 {[%clk 0:02:20]} 27. Re3 {[%clk 0:01:41]}  Rc4 {[%clk 0:02:20]} 28. Kg1 {[%clk 0:01:37]}  Ra4 {[%clk 0:02:19]} 29. Rg3 {[%clk 0:01:37]}  g6 {[%clk 0:02:19]} 30. Rh3 {[%clk 0:01:35]}  h5 {[%clk 0:02:18]} 31. Rg3 {[%clk 0:01:35]}  Kf6 {[%clk 0:02:15]} 32. Rf3+ {[%clk 0:01:35]}  Kg7 {[%clk 0:02:15]} 33. Rd3 {[%clk 0:01:31]}  Rxa3 {[%clk 0:02:14]} 34. Kf2 {[%clk 0:01:30]}  Kh6 {[%clk 0:02:06]} 35. h3 {[%clk 0:01:21]}  h4 {[%clk 0:01:58]} 36. g4 {[%clk 0:01:16]}  Kg5 {[%clk 0:01:56]} 37. Ke3 {[%clk 0:01:14]}  a5 {[%clk 0:01:51]} 38. Kd2 {[%clk 0:01:12]}  Kf4 {[%clk 0:01:51]} 39. Rd6 {[%clk 0:01:11]}  g5 {[%clk 0:01:48]} 40. Rxb6 {[%clk 0:01:09]}  Kxe4 {[%clk 0:01:49]} 41. Rg6 {[%clk 0:01:09]}  Ra2+ {[%clk 0:01:44]} 42. Kc1 {[%clk 0:01:08]}  Kf4 {[%clk 0:01:42]} 43. Rf6+ {[%clk 0:01:09]}  Kg3 {[%clk 0:01:36]} 44. Rf5 {[%clk 0:01:09]}  Kxh3 {[%clk 0:01:36]} 45. Rxg5 {[%clk 0:01:08]}  Kg3 {[%clk 0:01:36]} 46. Rxe5 {[%clk 0:01:07]}  h3 {[%clk 0:01:35]} 47. g5 {[%clk 0:00:53]}  h2 {[%clk 0:01:34]} 0-1


[Site "https://www.chess.com"]

[Event "Titled Tuesday Blitz May 23 Early 2023"]
[White "Lucas, Arthur"]
[Black "Filip, Andrei"]
[WhiteFideId "26093073"]
[BlackFideId "1249452"]
[WhiteElo "2251"]
[BlackElo "2202"]
[Result "1-0"]
[Round "03"]
[TimeControl "180+2"]
[Date "2023.05.23"]
[WhiteClock "0:00:30"]
[BlackClock "0:00:10"]

1. e4 {[%clk 0:02:55]}  c5 {[%clk 0:02:58]} 2. Nc3 {[%clk 0:02:53]}  Nc6 {[%clk 0:02:56]} 3. Bb5 {[%clk 0:02:52]}  g6 {[%clk 0:02:51]} 4. Bxc6 {[%clk 0:02:52]}  dxc6 {[%clk 0:02:50]} 5. f4 {[%clk 0:02:52]}  Bg7 {[%clk 0:02:49]} 6. Nf3 {[%clk 0:02:52]}  Nf6 {[%clk 0:02:45]} 7. O-O {[%clk 0:02:51]}  O-O {[%clk 0:02:44]} 8. d3 {[%clk 0:02:50]}  Qc7 {[%clk 0:02:30]} 9. Qe1 {[%clk 0:02:49]}  e5 {[%clk 0:02:26]} 10. Nxe5 {[%clk 0:02:42]}  b5 {[%clk 0:02:15]} 11. Be3 {[%clk 0:02:33]}  Qb6 {[%clk 0:02:00]} 12. b4 {[%clk 0:02:25]}  Re8 {[%clk 0:01:59]} 13. Bxc5 {[%clk 0:02:25]}  Qc7 {[%clk 0:01:59]} 14. a4 {[%clk 0:02:10]}  bxa4 {[%clk 0:01:55]} 15. Nxa4 {[%clk 0:02:05]}  Ng4 {[%clk 0:01:50]} 16. Nxg4 {[%clk 0:01:55]}  Bxg4 {[%clk 0:01:51]} 17. e5 {[%clk 0:01:40]}  f6 {[%clk 0:01:40]} 18. d4 {[%clk 0:01:37]}  Be6 {[%clk 0:01:34]} 19. Bd6 {[%clk 0:01:33]}  Qd8 {[%clk 0:01:32]} 20. Nc5 {[%clk 0:01:31]}  Bd5 {[%clk 0:01:32]} 21. Qg3 {[%clk 0:01:22]}  Qb6 {[%clk 0:01:20]} 22. exf6 {[%clk 0:01:04]}  Bxf6 {[%clk 0:01:20]} 23. c3 {[%clk 0:01:00]}  Re2 {[%clk 0:01:15]} 24. Rf2 {[%clk 0:00:51]}  Rae8 {[%clk 0:01:05]} 25. Nd7 {[%clk 0:00:45]}  Re1+ {[%clk 0:01:03]} 26. Rxe1 {[%clk 0:00:41]}  Rxe1+ {[%clk 0:01:04]} 27. Rf1 {[%clk 0:00:42]}  Bxd4+ {[%clk 0:00:47]} 28. cxd4 {[%clk 0:00:43]}  Qxd4+ {[%clk 0:00:47]} 29. Qf2 {[%clk 0:00:43]}  Rxf1+ {[%clk 0:00:40]} 30. Kxf1 {[%clk 0:00:44]}  Qd1+ {[%clk 0:00:27]} 31. Qe1 {[%clk 0:00:44]}  Bc4+ {[%clk 0:00:25]} 32. Kf2 {[%clk 0:00:45]}  Qxd6 {[%clk 0:00:24]} 33. Qe8+ {[%clk 0:00:41]}  Kg7 {[%clk 0:00:24]} 34. Qe5+ {[%clk 0:00:41]}  Qxe5 {[%clk 0:00:24]} 35. Nxe5 {[%clk 0:00:42]}  Bb5 {[%clk 0:00:24]} 36. Ke3 {[%clk 0:00:42]}  Kf6 {[%clk 0:00:23]} 37. g4 {[%clk 0:00:40]}  Ke6 {[%clk 0:00:23]} 38. Kd4 {[%clk 0:00:41]}  Kd6 {[%clk 0:00:18]} 39. Nf7+ {[%clk 0:00:39]}  Ke6 {[%clk 0:00:18]} 40. Ng5+ {[%clk 0:00:40]}  Ke7 {[%clk 0:00:15]} 41. Nxh7 {[%clk 0:00:40]}  Be2 {[%clk 0:00:15]} 42. h3 {[%clk 0:00:37]}  Kd6 {[%clk 0:00:15]} 43. Ng5 {[%clk 0:00:35]}  c5+ {[%clk 0:00:16]} 44. bxc5+ {[%clk 0:00:35]}  Kc6 {[%clk 0:00:17]} 45. Nf7 {[%clk 0:00:31]}  a5 {[%clk 0:00:17]} 46. Ne5+ {[%clk 0:00:31]}  Kc7 {[%clk 0:00:16]} 47. Nxg6 {[%clk 0:00:31]}  a4 {[%clk 0:00:17]} 48. Ne5 {[%clk 0:00:29]}  a3 {[%clk 0:00:16]} 49. Kc3 {[%clk 0:00:30]}  Bf1 {[%clk 0:00:15]} 50. h4 {[%clk 0:00:30]}  a2 {[%clk 0:00:10]} 51. Kb2 {[%clk 0:00:30]} 1-0


[Site "https://www.chess.com"]

[Event "Titled Tuesday Blitz May 23 Early 2023"]
[White "Goncalves, Davi Sulzbacher"]
[Black "Alhadad, Mahmoud"]
[WhiteFideId "2154510"]
[BlackFideId "11501863"]
[WhiteElo "2182"]
[BlackElo "1955"]
[Result "1-0"]
[Round "03"]
[TimeControl "180+2"]
[Date "2023.05.23"]
[WhiteClock "0:00:04"]
[BlackClock "0:00:00"]

1. Nf3 {[%clk 0:03:00]}  Nc6 {[%clk 0:02:59]} 2. c4 {[%clk 0:03:01]}  e5 {[%clk 0:02:59]} 3. Nc3 {[%clk 0:03:01]}  f5 {[%clk 0:03:00]} 4. d4 {[%clk 0:02:57]}  e4 {[%clk 0:03:00]} 5. Ng5 {[%clk 0:02:55]}  Bb4 {[%clk 0:02:54]} 6. g3 {[%clk 0:02:38]}  Qf6 {[%clk 0:02:38]} 7. a3 {[%clk 0:02:26]}  Bxc3+ {[%clk 0:02:37]} 8. bxc3 {[%clk 0:02:25]}  d6 {[%clk 0:02:35]} 9. Bg2 {[%clk 0:02:24]}  h6 {[%clk 0:02:34]} 10. Nh3 {[%clk 0:02:23]}  Na5 {[%clk 0:02:33]} 11. Qa4+ {[%clk 0:02:21]}  Nc6 {[%clk 0:02:31]} 12. O-O {[%clk 0:02:19]}  Bd7 {[%clk 0:02:26]} 13. Nf4 {[%clk 0:02:13]}  Nxd4 {[%clk 0:02:21]} 14. Qd1 {[%clk 0:02:11]}  Nc6 {[%clk 0:02:13]} 15. Nd5 {[%clk 0:02:07]}  Qd8 {[%clk 0:02:13]} 16. f3 {[%clk 0:02:07]}  exf3 {[%clk 0:02:08]} 17. exf3 {[%clk 0:01:39]}  Nge7 {[%clk 0:02:07]} 18. Rb1 {[%clk 0:01:27]}  Rb8 {[%clk 0:01:54]} 19. c5 {[%clk 0:01:14]}  dxc5 {[%clk 0:01:52]} 20. Bf4 {[%clk 0:01:14]}  Nxd5 {[%clk 0:01:45]} 21. Qxd5 {[%clk 0:01:11]}  Ne7 {[%clk 0:01:35]} 22. Rfe1 {[%clk 0:01:02]}  b6 {[%clk 0:01:26]} 23. Re3 {[%clk 0:00:39]}  Kf8 {[%clk 0:01:19]} 24. Qa2 {[%clk 0:00:31]}  Ng6 {[%clk 0:00:53]} 25. Rd1 {[%clk 0:00:24]}  Nxf4 {[%clk 0:00:53]} 26. gxf4 {[%clk 0:00:25]}  Qc8 {[%clk 0:00:37]} 27. Qd5 {[%clk 0:00:21]}  Ba4 {[%clk 0:00:28]} 28. Rde1 {[%clk 0:00:20]}  Qd7 {[%clk 0:00:22]} 29. Qa2 {[%clk 0:00:15]}  Rd8 {[%clk 0:00:04]} 30. Bf1 {[%clk 0:00:13]}  Qf7 {[%clk 0:00:02]} 31. Bc4 {[%clk 0:00:10]}  Qg6+ {[%clk 0:00:02]} 32. Kh1 {[%clk 0:00:10]}  b5 {[%clk 0:00:03]} 33. Be6 {[%clk 0:00:09]}  Re8 {[%clk 0:00:03]} 34. Qe2 {[%clk 0:00:07]}  Qf6 {[%clk 0:00:03]} 35. Bd5 {[%clk 0:00:03]}  Rxe3 {[%clk 0:00:03]} 36. Qxe3 {[%clk 0:00:04]}  Qd8 {[%clk 0:00:02]} 37. Qe6 {[%clk 0:00:04]}  Qe7 {[%clk 0:00:00]} 38. Qc8+ {[%clk 0:00:04]} 1-0


[Site "https://www.chess.com"]

[Event "Titled Tuesday Blitz May 23 Early 2023"]
[White "Dilmukhametov, Artur"]
[Black "Rom, Jasper"]
[WhiteFideId "24179922"]
[BlackFideId "2023733"]
[WhiteElo "2242"]
[BlackElo "2233"]
[Result "0-1"]
[Round "03"]
[TimeControl "180+2"]
[Date "2023.05.23"]
[WhiteClock "0:01:57"]
[BlackClock "0:01:05"]

1. e4 {[%clk 0:03:00]}  e6 {[%clk 0:02:59]} 2. d4 {[%clk 0:02:59]}  d5 {[%clk 0:02:59]} 3. exd5 {[%clk 0:02:59]}  exd5 {[%clk 0:02:58]} 4. Nc3 {[%clk 0:02:59]}  Nf6 {[%clk 0:02:54]} 5. Bf4 {[%clk 0:02:57]}  Bd6 {[%clk 0:02:51]} 6. Bxd6 {[%clk 0:02:55]}  Qxd6 {[%clk 0:02:50]} 7. Nf3 {[%clk 0:02:55]}  O-O {[%clk 0:02:50]} 8. Bd3 {[%clk 0:02:54]}  Bg4 {[%clk 0:02:48]} 9. h3 {[%clk 0:02:44]}  Bh5 {[%clk 0:02:48]} 10. g4 {[%clk 0:02:41]}  Bg6 {[%clk 0:02:43]} 11. Qd2 {[%clk 0:02:41]}  Re8+ {[%clk 0:02:40]} 12. Be2 {[%clk 0:02:40]}  Ne4 {[%clk 0:02:14]} 13. Nxe4 {[%clk 0:02:32]}  Bxe4 {[%clk 0:02:13]} 14. O-O-O {[%clk 0:02:29]}  Nc6 {[%clk 0:02:13]} 15. Rhg1 {[%clk 0:02:25]}  Nb4 {[%clk 0:02:05]} 16. g5 {[%clk 0:02:16]}  Bxc2 {[%clk 0:01:22]} 17. Rde1 {[%clk 0:02:06]}  Be4 {[%clk 0:01:15]} 18. h4 {[%clk 0:02:04]}  Qc6+ {[%clk 0:01:06]} 19. Kd1 {[%clk 0:01:57]}  Bc2+ {[%clk 0:01:05]} 0-1


[Site "https://www.chess.com"]

[Event "Titled Tuesday Blitz May 23 Early 2023"]
[White "ChawitAp"]
[Black "Pasti, Aron"]
[BlackFideId "785857"]
[WhiteElo "2251"]
[BlackElo "2173"]
[Result "1-0"]
[Round "03"]
[TimeControl "180+2"]
[Date "2023.05.23"]
[WhiteClock "0:01:13"]
[BlackClock "0:01:14"]

1. d4 {[%clk 0:03:00]}  d5 {[%clk 0:02:59]} 2. Nf3 {[%clk 0:03:00]}  Nf6 {[%clk 0:02:59]} 3. c3 {[%clk 0:03:01]}  Bf5 {[%clk 0:02:59]} 4. Bf4 {[%clk 0:03:01]}  c5 {[%clk 0:02:56]} 5. dxc5 {[%clk 0:02:59]}  e6 {[%clk 0:02:55]} 6. b4 {[%clk 0:02:54]}  a5 {[%clk 0:02:55]} 7. Nbd2 {[%clk 0:02:37]}  axb4 {[%clk 0:02:52]} 8. cxb4 {[%clk 0:02:37]}  Nc6 {[%clk 0:02:52]} 9. Qb3 {[%clk 0:02:29]}  Be7 {[%clk 0:02:45]} 10. e3 {[%clk 0:02:28]}  O-O {[%clk 0:02:45]} 11. Nd4 {[%clk 0:02:23]}  Bg6 {[%clk 0:02:41]} 12. Nxc6 {[%clk 0:02:21]}  bxc6 {[%clk 0:02:41]} 13. Be2 {[%clk 0:02:18]}  Re8 {[%clk 0:02:40]} 14. O-O {[%clk 0:02:17]}  Rb8 {[%clk 0:02:38]} 15. Bxb8 {[%clk 0:02:13]}  Qxb8 {[%clk 0:02:39]} 16. Nf3 {[%clk 0:02:13]}  Bd8 {[%clk 0:02:38]} 17. a3 {[%clk 0:02:09]}  Bc7 {[%clk 0:02:38]} 18. Bd3 {[%clk 0:02:09]}  Ne4 {[%clk 0:02:19]} 19. h3 {[%clk 0:02:05]}  Bh5 {[%clk 0:02:08]} 20. Bxe4 {[%clk 0:02:00]}  dxe4 {[%clk 0:02:09]} 21. Nd4 {[%clk 0:02:00]}  Rc8 {[%clk 0:01:59]} 22. a4 {[%clk 0:01:47]}  f5 {[%clk 0:01:55]} 23. Qxe6+ {[%clk 0:01:42]}  Kh8 {[%clk 0:01:54]} 24. Nxc6 {[%clk 0:01:40]}  Qb7 {[%clk 0:01:45]} 25. b5 {[%clk 0:01:36]}  Bg6 {[%clk 0:01:31]} 26. Ne7 {[%clk 0:01:32]}  Rf8 {[%clk 0:01:29]} 27. Nxg6+ {[%clk 0:01:31]}  hxg6 {[%clk 0:01:30]} 28. b6 {[%clk 0:01:27]}  Bd8 {[%clk 0:01:25]} 29. a5 {[%clk 0:01:24]}  Rf6 {[%clk 0:01:24]} 30. Qe8+ {[%clk 0:01:23]}  Kh7 {[%clk 0:01:23]} 31. Qxd8 {[%clk 0:01:21]}  f4 {[%clk 0:01:23]} 32. a6 {[%clk 0:01:17]}  Qc6 {[%clk 0:01:14]} 33. a7 {[%clk 0:01:13]} 1-0


[Site "https://www.chess.com"]